Cogmind - Beta 11 X8 @@@ ROGUE MODE // 2021.11.13 @ 15:44:29 Player: Runia Result: Destroyed by as-25631 with Assembled Rifle Performance ------------- Evolutions (0) 0 Regions Visited (2) 400 Robots Destroyed (24) 120 Value Destroyed (601) 601 Prototype IDs (2) 40 Alien Tech Used (0) 0 Bonus (0) 0 TOTAL SCORE: 1161 Bonus ------- None Cogmind --------- Core Integrity 0/250 Matter 280/300 Energy 250/250 System Corruption 0% Temperature Cool (97) Movement Treading (240) Ox1 Location -10/Mines Parts ------- > --- POWER (1) -------- Ion Engine > --- PROPULSION (2) --- Improved Treads Armored Wheel > --- UTILITY (2) ------ Large Storage Unit > --- WEAPON (2) ------- Beam Rifle Beam Rifle > --- INVENTORY (15) --- Ion Engine Light Treads Light Treads Improved Treads Improved Treads Large Matter Pod (150) Hacking Suite EM Pulse Gun Beam Rifle Beam Rifle Advanced Beam Cannon Peak State ------------ > --- POWER ------------ Ion Engine > --- PROPULSION ------- Improved Treads Armored Wheel > --- UTILITY ---------- Heat Sink Large Storage Unit > --- WEAPON ----------- Beam Rifle Beam Rifle > --- INVENTORY -------- Ion Engine Light Treads Light Treads Improved Treads Improved Treads Improved Treads Large Matter Pod Hacking Suite EM Pulse Gun Beam Rifle Beam Rifle Advanced Beam Cannon [Rating: 13] Favorites ----------- Power Ion Engine Engine Ion Engine Propulsion Improved Treads Treads Improved Treads Leg Aluminum Leg Wheel Armored Wheel Utility Large Storage Unit Device Heat Sink Storage Large Storage Unit Weapon EM Pulse Gun Energy Gun EM Pulse Gun Ballistic Gun Assault Rifle Build | -11 -10 -10 ------- Run | Scr Mat Min Slots Evolved . | . . . Power . | . . . Propulsion . | . . . Utility . | . . . Weapon . | . . . Parts Attached 16 | 2 13 1 Power 1 | . 1 . Engine 1 | . 1 . Core . | . . . Reactor . | . . . Propulsion 6 | 2 3 1 Treads 5 | 2 2 1 Leg . | . . . Wheel 1 | . 1 . Hover . | . . . Flight . | . . . Utility 3 | . 3 . Device 1 | . 1 . Storage 2 | . 2 . Processor . | . . . Hackware . | . . . Protection . | . . . Artifact . | . . . Weapon 6 | . 6 . Energy Gun 5 | . 5 . Energy Cannon . | . . . Ballistic Gun 1 | . 1 . Ballistic Cannon . | . . . Launcher . | . . . Special Weapon . | . . . Impact Weapon . | . . . Slashing Weapon . | . . . Piercing Weapon . | . . . Special Melee Weapon . | . . . Unidentified Prototypes . | . . . Parts Lost 6 | . 4 2 Power 1 | . 1 . Propulsion 1 | . . 1 Utility 1 | . . 1 Weapon 3 | . 3 . Highest Loss Streak 2 | . 2 2 Average Slot Usage (%) 89 | . 89 95 Engine 13 | . 13 14 Treads 22 | . 23 12 Wheel 5 | . 4 14 Device 4 | . 3 11 Storage 14 | . 14 14 Energy Gun 21 | . 20 28 Ballistic Gun 6 | . 7 . Naked Turns . | . . . Heaviest Build 32 | 14 32 32 Greatest Support 46 | 40 46 12 Greatest Overweight (x) 2 | . 2 2 Average Overweight (x) . | . . 2 Largest Inventory Capacity 15 | 8 15 15 Average Capacity 12 | 8 12 15 Most Carried 12 | 6 12 12 Average Carried 8 | 4 7 11 Final Capacity 15 | 8 15 15 Final Carried 12 | 2 12 11 Class Distribution -------------------- 100% | Mutant Dominant Class ---------------- Mutant | -10/Materials Mutant | -10/Mines Resources | -11 -10 -10 ----------- Run | Scr Mat Min Matter Collected 610 | 200 410 . Remotely . | . . . Salvage Created 808 | . 766 42 Parts 54 | . 54 . Haulers Intercepted 1 | . 1 . Recyclers Shooed 2 | . 2 . Parts Field Recycled . | . . . Retrieved Matter . | . . . Parts Self-Destructed . | . . . Prevented . | . . . Kills | -11 -10 -10 ------- Run | Scr Mat Min Combat Hostiles Destroyed 22 | . 19 3 Guns 21 | . 18 3 AOE 1 | . 1 . Classes Destroyed 6 | . 5 1 Hauler 1 | . 1 . Operator 2 | . 2 . Watcher 2 | . 2 . Swarmer 6 | . 6 . Grunt 13 | . 13 . Assembled 3 | . . 3 Best Kill Streak 4 | . 4 3 Combat Bots Only 3 | . 3 3 Max Kills in Single Turn 2 | . 2 1 Gunslinging . | . . . Exploded 1 | . 1 . Melee . | . . . Uniques/NPCs Destroyed . | . . . Combat | -11 -10 -10 -------- Run | Scr Mat Min Damage Taken 1100 | . 809 291 Core 255 | . 193 62 Absorbed by Shields . | . . . Core Remaining (%) 100 | 100 . . Volleys Fired 83 | . 76 7 Largest 2 | . 2 2 Hottest 112 | . 80 112 Shots Fired 165 | . 151 14 Gun 165 | . 151 14 Cannon . | . . . Launcher . | . . . Special . | . . . Kinetic 50 | . 50 . Thermal 47 | . 33 14 Explosive . | . . . Electromagnetic 68 | . 68 . Robot Hit Streak 16 | . 12 16 Robot Miss Streak 3 | . 3 1 Penetration Max . | . . . Secondary Targets 3 | . 1 2 Max Gunslinging Chain 1 | . 1 1 Shots Hit Robots 114 | . 102 12 Core Hits 46 | . 39 7 Critical Kills . | . . . Critical Parts Destroyed 1 | . 1 . Critical Strikes 4 | . 2 2 Burn 2 | . . 2 Destroy 1 | . 1 . Corrupt 1 | . 1 . Melee Attacks . | . . . Impact . | . . . Slashing . | . . . Piercing . | . . . Sneak Attacks . | . . . Combat Hostiles . | . . . Follow-up Attacks . | . . . Damage Inflicted 1568 | . 1396 172 Guns 1448 | . 1276 172 Cannons . | . . . Explosions 120 | . 120 . Melee . | . . . Ramming . | . . . Kinetic 446 | . 446 . Thermal 544 | . 372 172 Explosive . | . . . Electromagnetic 578 | . 578 . Impact . | . . . Slashing . | . . . Piercing . | . . . Highest Corruption . | . . . Average Corruption . | . . . Corruption Purged . | . . . Overload Shots . | . . . Overflow Damage . | . . . Projectiles . | . . . Explosions . | . . . Melee . | . . . Knockbacks . | . . . Impact . | . . . Kinetic . | . . . Secondary . | . . . Self-Inflicted Damage 32 | . 32 . Shots 1 | . 1 . Rammed . | . . . Targets Rammed . | . . . Kicked . | . . . Crushed . | . . . Highest Temperature 266 | . 154 266 Average Temperature 47 | . 35 110 Received Heat Transfer 500 | . 360 140 Siege Activations . | . . . Robots Corrupted . | . . . Combat Hostiles . | . . . Parts Fried 4 | . 4 . Impact Corruptions . | . . . Robots Melted . | . . . Combat Hostiles . | . . . Parts Melted 2 | . 2 . Heat Transferred 1267 | . 675 592 Parts Sabotaged . | . . . Parts Stolen . | . . . Parts Stripped . | . . . Power Chain Reactions 3 | . 3 . Missiles Intercepted . | . . . Alert | -11 -10 -10 ------- Run | Scr Mat Min Peak Influence 381 | . 381 44 Initial 44 | . . 44 Average 132 | . 143 39 Maximum Alert Level 1 | . 1 . Low Security (%) 69 | 100 66 100 Level 1 30 | . 33 . Level 2 . | . . . Level 3 . | . . . Level 4 . | . . . Level 5 . | . . . High Security . | . . . Max Security . | . . . Squads Dispatched 5 | . 5 . Investigation 2 | . 2 . Extermination . | . . . Reinforcement 3 | . 3 . Assault . | . . . Garrison . | . . . Intercept . | . . . Construction Impeded . | . . . Haulers Reinforced . | . . . Active Scanning Responses . | . . . Cargo Convoy Interrupts . | . . . Stealth | -11 -10 -10 --------- Run | Scr Mat Min Distress Signals 3 | . 3 . Communications Jammed . | . . . Distress Signals . | . . . Times Spotted 40 | . 31 9 Peak Tracking Total 10 | . 4 10 Tactical Retreats 2 | . 1 1 Traps | -11 -10 -10 ------- Run | Scr Mat Min Traps Triggered . | . . . Indirectly . | . . . Trap Hack Attempts . | . . . Triggered . | . . . Disarmed . | . . . Reprogrammed . | . . . Reused . | . . . Traps Extracted . | . . . Installed . | . . . Triggered . | . . . Machines | -11 -10 -10 ---------- Run | Scr Mat Min Machines Disabled 2 | . 2 . Max in Single Turn 1 | . 1 . Machines Sabotaged . | . . . Garrisons Compromised . | . . . Overloaded Fab Kills . | . . . Hacking | -11 -10 -10 --------- Run | Scr Mat Min Machines Accessed 6 | . 6 . Terminals 5 | . 5 . Fabricators . | . . . Repair Stations . | . . . Recycling Units 1 | . 1 . Scanalyzers . | . . . Garrison Access . | . . . Total Hacks 14 | . 14 . Successful 9 | . 9 . Failed 5 | . 5 . Catastrophic 1 | . 1 . Database Lockouts . | . . . Manual 6 | . 6 . Terminals 12 | . 12 . Fabricators . | . . . Repair Stations . | . . . Recycling Units 2 | . 2 . Scanalyzers . | . . . Garrison Access . | . . . Terminal Hacks 7 | . 7 . Prototype ID Bank 1 | . 1 . Terminal Index 1 | . 1 . Alert Level 1 | . 1 . Unreport Threat 1 | . 1 . Locate Traps 1 | . 1 . Hauler Manifests 1 | . 1 . Zone Layout 1 | . 1 . Fabricator Hacks . | . . . Repair Station Hacks . | . . . Recycling Unit Hacks 1 | . 1 . Report Inventory 1 | . 1 . Scanalyzer . | . . . Garrison Access Hacks . | . . . Unauthorized Hacks 1 | . 1 . Terminals . | . . . Fabricators . | . . . Repair Stations . | . . . Recycling Units 1 | . 1 . Tunnel 1 | . 1 . Scanalyzers . | . . . Garrison Access . | . . . Data Cores Recovered . | . . . Used . | . . . Hacking Detections 5 | . 5 . Full Trace Events . | . . . Feedback Events . | . . . Feedback Blocked . | . . . Robot Schematics Acquired . | . . . Robots Built . | . . . Authchips . | . . . Time . | . . . Total Robot Build Rating . | . . . Part Schematics Acquired . | . . . Parts Built . | . . . Authchips . | . . . Time . | . . . Total Part Build Rating . | . . . Parts Repaired . | . . . Time . | . . . Parts Recycled . | . . . Recycled Matter . | . . . Retrieved Matter . | . . . Retrieved Components . | . . . Parts Scanalyzed . | . . . Part Schematics Acquired . | . . . Parts Damaged . | . . . Bothacking | -11 -10 -10 ------------ Run | Scr Mat Min Used RIF Installer . | . . . Robots Hacked . | . . . Non-combat . | . . . Combat . | . . . Robot Hacks Applied . | . . . Relay Couplers Released . | . . . Fabnet Peak Effective % . | . . . Robots Rewired . | . . . Allies Hacked . | . . . Hacks Repelled . | . . . Allies | -11 -10 -10 -------- Run | Scr Mat Min Total Allies . | . . . Largest Group . | . . . Highest-Rated Group . | . . . Highest-Rated Ally . | . . . Total Orders . | . . . Ally Attacks . | . . . Total Damage . | . . . Kills . | . . . Allies Corrupted . | . . . Allies Melted . | . . . Intel | -11 -10 -10 ------- Run | Scr Mat Min Robot Analysis Total . | . . . Derelict Logs Recovered . | . . . Drone Launches . | . . . Drone Recoveries . | . . . Exploration | -11 -10 -10 ------------- Run | Scr Mat Min Turns Passed 1217 | 5 1097 115 Spaces Moved 640 | 1 562 77 Core . | . . . Treads 326 | 1 325 . Legs . | . . . Wheels 314 | . 237 77 Hover . | . . . Flight . | . . . Fastest Speed 105 | 160 105 120 Average Speed 140 | 160 143 120 Slowest Speed 160 | 160 160 120 Overloaded Moves . | . . . Propulsion Burnouts . | . . . Robots Hopped . | . . . Cave-ins Triggered . | . . . Exploration Rate (%) 40 | 1 93 26 Regions Visited 2 Branch Regions 1 Pre-discovered Areas 1 | . 1 . Known Exits Taken . | . . . Unknown Exits Taken 2 | 1 1 . Scrap Searched . | . . . Spaces Dug . | . . . Terrain Destroyed 11 | . 11 . Melee . | . . . Projectile . | . . . AOE 11 | . 11 . Terrain Rammed . | . . . Walls Destroyed . | . . . Machines Disabled . | . . . Actions | -11 -10 -10 --------- Run | Scr Mat Min Total 793 | 6 702 85 Wait 31 | . 31 . Move 638 | . 561 77 Hop . | . . . Pick Up 15 | . 15 . Fast Attach 2 | . 2 . Attach 7 | 2 4 1 Detach . | . . . Swap 7 | . 7 . Drop 10 | 4 6 . Fire 83 | . 76 7 Melee . | . . . Ram . | . . . Kick . | . . . Crush . | . . . Escape Stasis . | . . . Rewire . | . . . Trap . | . . . Miscellaneous . | . . . Route ------- -11/Scrapyard -10/Materials (discovered 4 exits: [*Mat x3] / [*Min]) -10/Mines History --------- Turn | Location | Event 6 | -11/Scrapyard | Discovered new exit (range 0) 6 | -11/Scrapyard | Entered Materials 226 | -10/Materials | Discovered new exit (range 10) 313 | -10/Materials | Build established: Mutant 437 | -10/Materials | Discovered new exit (range 6) 541 | -10/Materials | Discovered new exit (range 14) 716 | -10/Materials | Core integrity fell below 50% 1013 | -10/Materials | Discovered new exit (range 16) 1103 | -10/Materials | Entered Mines 1121 | -10/Mines | Met a Derelict bent on vengeance 1161 | -10/Mines | Assembled infested the area 1185 | -10/Mines | Core integrity fell below 20% 1218 | -10/Mines | Destroyed by as-25631 with Assembled Rifle Last Messages --------------- 01007_ Acquired Adv. Beam Cannon. 01013_ EXIT=FOUND 01034_ R-06 Scavenger collects Sml. Laser. LOCATION=UNKNOWN GOAL=ESCAPE Something is scanning the area. 01104_ K-01 Serf collects debris. 01161_ ALERT: Infestation in the mines, dispatching Demolisher response squad. 01186_ as-82893 destroyed. 01186_ Switching to secondary target: as-57237. 01187_ K-01 Serf collects debris. 01187_ Imp. Treads destroyed. 01189_ as-57237 destroyed. 01190_ K-01 Serf collects debris. 01193_ as-30307 suffers critical hit (Burn). 01195_ Heat Sink destroyed. 01196_ as-30307 destroyed. 01196_ Switching to secondary target: as-62089. 01215_ as-25631 suffers critical hit (Burn). Map ----- +----------------------------------------------------+ | ????????????????????????????????????????????? | | ????????????????????????????????????????????? | | ????????????????????????????????????????????? | | ????????????????????????????????????????????? | | ????????????????????????????????????????????? | | ????????????????????????????????????????????? | | ????????????????????????????????????????????? | | ????????????????????????????????????????????? | | ????????????????????????????????????????????? | | ????????????????????????????????????????????? | | ????#### ##########????????????????????????? | | ? #????????????????????????? | | ? #????????????????????????? | | ? " ####### #????????????????????????? | | ????????????????# #????????????????????????? | | ????????????????#% #????????????????????????? | | ????????????????#%%#????????????????????????? | | ????????????????# #????????????????????????? | | ????????????????# #????????????????????????? | | ????????????###?# #???????###??????????????? | | ???????????## ## #?????? ####???????????? | | ?????## ### ##????? ####????????? | | ??# ##???? ##???????? | | ?? ##?## #???????? | | ?? ### ### #???????? | | ??? ???## a @ #???????? | | ???# ????## a #????????? | | ???? ????## ## #????????? | | ????# ????## #### #????????? | | ?????# ?????# ##??? #???????? | | ??????#??????# ##???? """ #??????? | | ?????????????## ##????? """ #??????? | | ??????????????## ##?????? """ ?????????? | | ???????????????## #??????? ??????????? | | ????????????????# #???????? #??????????? | | ????????????????# #????????# ##??????????? | | ????????????????# #?????????# ##???????????? | | ????????????????# #??????????###????????????? | | ????????????# ### #????????####?#########???? | | ????????????# #???????## ### #???? | | ????????????##### #???????# #???? | | ????????????????# #??????## ## #???? | | ????????????##### ######## ## #???? | | ????????????# ## #???? | | ????????????# ##### """ ## #???? | | ????????????# ?????# """ ###########???? | | ??????????? ??????## """ ##????????????? | | ?????????? ?????????## #????????????? | | ????????# ???????????### #???????????? | | ????????#??????????????## #?????????? | +----------------------------------------------------+ Best States ------------- Heat Dissipation 35 Energy Generation 10 Energy Capacity 250 Matter Stores 450 Matter Capacity 450 Sight Range 16 Terrain Scan Density 10 Evasion (%) 40 Recoil Reduction 2 Item Schematics ----------------- None Robot Schematics ------------------ None Fabricated ------------ Nothing Alien Tech Used ----------------- None Achievements -------------- None Challenges ------------ None Game ------ Seed RecyclingAssembledComputer Manual? 0 Play Time 00:08:30 Cumulative 468.1 hours Start 2021.11.13 @ 15:35:13 End 2021.11.13 @ 15:44:29 Sessions 1 Manual Loads 0 Difficulty Rogue Special Mode None Game No. 471 Rogue 471 Adventurer 0 Explorer 0 Win Type - Total 9 Types 8/0/0/1/0/0/0/0/0 Lore% 81 Gallery% 93 Achievement% 71 Wizard Run 0 Options --------- ASCII 0 Keyboard 0 Movement Mouse Keybinds 1 Fullscreen 2 Font 24/Smallcaps Map View 76x50 Tactical HUD 1 Map Filters NONE Filters NONE Steam 1 RUN: 7141d493-5760-4c14-bf2f-e3c59707f113